Workbook

Sheet COVER
A1: U.S. IBU Cup Trials & MN Cup #3
A2: 2012-12-16
A3: PURSUIT COMPETITION
A4: FINAL RESULTS
A5: Coleraine, MN | N5: Mt. Itasca Nordic Ski Association
C9: PATICIPATION
C10: CLASS | D10: START | E10: ENTRIES | F10: DNS | G10: DNF | H10: DSQ
C11: VETERAN MEN
C12: SR MASTER MEN
C13: MASTER MEN
C14: MEN
C15: VETERAN WOMEN
C16: SR MASTER WOMEN
C17: MASTER WOMEN
C18: WOMEN
C19: JR MEN
C20: JR WOMEN
C21: YOUTH MEN
C22: YOUTH WOMEN
C23: TOTAL | D23: =SUM(D11:D22) -> 0 | E23: =SUM(E11:E22) -> 0 | F23: =SUM(F11:F22) -> 0 | G23: =SUM(G11:G22) -> 0 | H23: =SUM(H11:H22) -> 0
C26: WEATHER | D26: 10:00:00 | E26: 11:00:00 | F26: 12:00:00 | G26: 13:00:00 | H26: 14:00:00
C27: AIR TEMP
C28: SNOW TEMP
C29: SKY CONDIT.
C30: WIND SPEED
C31: WIND DIRCT.
C34: JURY
C35: TECHNICAL DELIGATE: | G35: COMPETITION CHIEF:
C37: JURY:
C43: TD'S SIGNATURE:
C45: DATE / TIME:

Sheet Reg List
A1: =+COVER!A1 -> U.S. IBU Cup Trials & MN Cup #3
A2: =+COVER!A2 -> 2012-12-16
A3: =+COVER!A3 -> PURSUIT COMPETITION
A4: REGISTRATION LIST
A5: Coleraine, MN | E5: Mt. Itasca Biathlon Association
A7: Class | B7: Name | C7: Town/Club | D7: Start # | E7: Class
E8: =A8 -> 0
E9: 0
E10: 0
E11: 0
E12: 0
E13: 0
E14: 0
E15: 0
E16: 0
E17: 0
E18: 0
E19: 0
E20: 0
E21: 0
E22: 0
E23: 0
E24: 0
E25: 0
E26: 0
E27: 0
E28: 0
E29: 0
E30: 0
E31: 0
E32: 0
E33: 0
E34: 0
E35: 0
E36: 0
E37: 0
E38: 0
E39: 0
E40: 0
E41: 0
E42: 0
E43: 0
E44: 0
E45: 0
E46: 0
E47: 0
E48: 0
E49: 0
E50: 0
E51: 0
E52: 0
E53: 0
E54: 0
E55: 0
E56: 0
E57: 0
E58: 0
E59: 0
E60: 0
E61: 0
E62: 0
E63: 0
E64: 0
E65: 0
E66: 0
E67: 0
E68: 0
E69: 0
E70: 0
E71: 0
E72: =A72 -> 0
E73: 0
E74: 0
E75: 0
E76: 0
E77: 0
E78: 0
E79: 0
E80: 0
E81: 0
E82: 0
E83: 0
E84: 0
E85: 0
E86: 0
E87: 0
E88: 0
E89: 0
E90: 0
E91: 0
E92: 0
E93: 0
E94: 0
E95: 0
E96: 0
E97: 0
E98: 0
E99: 0
E100: 0
E101: 0
E102: 0

Sheet Start List
A1: =+COVER!A1 -> U.S. IBU Cup Trials & MN Cup #3
A2: =+COVER!A2 -> 2012-12-16
A3: =+COVER!A3 -> PURSUIT COMPETITION
A4: START LIST
A5: Coleraine, MN | L5: =COVER!N5 -> Mt. Itasca Nordic Ski Association
A7: Class | B7: StNr | C7: Name (last, first) | D7: Club/Team/Hometown, State | E7: Start | F7: Ski Time | G7: P | H7: P | I7: S | J7: S | K7: T | L7: Final
A8: SM | B8: 51 | C8: Roberts, Wynn | D8: National Guard | E8: 11:00:30 | K8: =IF(ISBLANK(G8),"",G8+H8+I8+J8) -> 
A9: SM | B9: 52 | C9: Johnson, Mark | D9: Mt.Itasca | E9: 11:00:40 | K9: =IF(ISBLANK(G9),"",G9+H9+I9+J9) -> 
A10: SM | B10: 53 | C10: Bowler, Bill | D10: Biathlon Alberta | E10: 11:00:50 | K10: =IF(ISBLANK(G10),"",G10+H10+I10+J10) -> 
A11: SM | B11: 54 | C11: Goessling, Raleigh | D11: MWSC | E11: 11:01:00 | K11: =IF(ISBLANK(G11),"",G11+H11+I11+J11) -> 
A12: JM | B12: 55 | C12: Dalberg, Jacob | D12: National Guard | E12: 11:01:10 | K12: =IF(ISBLANK(G12),"",G12+H12+I12+J12) -> 
A13: SM | B13: 56 | C13: Gibson, Michael | D13: Vermont Biathlon | E13: 11:01:20
A14: SM | B14: 57 | C14: Roberts, Conrad | D14: National Guard | E14: 11:01:30
A15: SM | B15: 58 | C15: Claas, Marc | D15: Wisconsin Biathlon | E15: 11:01:40
A16: JM | B16: 59 | C16: Nelson, Zach | D16: NNW | E16: 11:01:50
B17: 60 | C17: ghost | E17: 11:02:00
C19: 90 second break
A21: SW | B21: 61 | C21: Malcolm, Corrine | D21: National Team | E21: 11:03:30
A22: SW | B22: 62 | C22: Dreissigacker, Hannah | D22: Craftsbury GRP/Nat.Team | E22: 11:03:40
A23: SW | B23: 63 | C23: Howe, Katrina | D23: MWSC | E23: 11:03:50
A24: JW | B24: 64 | C24: Kubek, Anna | D24: Mt.Itasca | E24: 11:04:00
A25: SW | B25: 65 | C25: Wygant, Jennifer | E25: 11:04:10
A26: SW | B26: 66 | C26: Mayo, Andrea | E26: 11:04:20
A27: JW | B27: 67 | C27: Hynes, Silke | D27: Vermont Biathlon | E27: 11:04:30
A28: JW | B28: 68 | C28: Ellingson, Siena | D28: TC Biathlon | E28: 11:04:40
A29: JW | B29: 69 | C29: Ruzich, Jenna | D29: NNW | E29: 11:04:50
A30: JW | B30: 70 | C30: Manning, Melissa | D30: MWSC | E30: 11:05:00
A31: JW | B31: 71 | C31: Peterson, Rachel | D31: Hastings | E31: 11:05:10
B32: 72 | C32: ghost | E32: 11:05:20 | K32: =IF(ISBLANK(G32),"",G32+H32+I32+J32) -> 
C34: 15 minute break
A36: YM | B36: 75 | C36: Mcelroy, Jordan | D36: National Guard | E36: 11:20:00
A37: YM | B37: 76 | C37: Ellingson, Jakob | D37: TC Biathlon | E37: 11:20:10
A38: YM | B38: 77 | C38: Betsinger, Jalen | D38: Blackhawk Biathlon | E38: 11:20:20
A39: YM | B39: 78 | C39: Merhar CJ | D39: NNW | E39: 11:20:30
A40: YM | B40: 79 | C40: Hadrits, Ty | D40: NNW | E40: 11:20:40
A41: YM | B41: 80 | C41: Fairbanks, Joe | D41: Duluth/Esko | E41: 11:20:50
A42: YM | B42: 81 | C42: Baker, Zean | D42: NNW | E42: 11:21:00
B43: 82 | C43: ghost | E43: 11:21:10
A44: MM | B44: 83 | C44: Peterson, Paul | D44: National Guard | E44: 11:21:20
A45: MM | B45: 84 | C45: Quinlan, Bill | D45: Colorado Biathlon | E45: 11:21:30
A46: MM | B46: 85 | C46: Bradley, Tyler | D46: National Guard | E46: 11:21:40
A47: MM | B47: 86 | C47: Hynes, Jeremiah | D47: Ontario Biathlon | E47: 11:21:50
A48: MM | B48: 87 | C48: Christiansen, Pelle | D48: NNW | E48: 11:22:00
A49: B | B49: 88 | C49: Christiansen, Cam | D49: NNW | E49: 11:22:10
A50: B | B50: 89 | C50: Pascuzzo, Joseph | D50: Ontario Biathlon | E50: 11:22:20
A51: B | B51: 90 | C51: Quinn, Toby | D51: Lake Superior Biathlon | E51: 11:22:30
B52: 91 | C52: ghost | E52: 11:22:40
K58: =IF(ISBLANK(G58),"",G58+H58+I58+J58) -> 
K73: =IF(ISBLANK(G73),"",G73+H73+I73+J73) -> 

Sheet Men
A1: =COVER!A1 -> U.S. IBU Cup Trials & MN Cup #3
A2: =COVER!A2 -> 2012-12-16
A3: MEN'S 12.5 km PURSUIT COMPETITION
A4: =COVER!A4 -> FINAL RESULTS
A5: =COVER!A5 -> Coleraine, MN | O5: =COVER!N5 -> Mt. Itasca Nordic Ski Association
A7: Pos. | B7: StNr | C7: Name | D7: Club/Team/Hometown, State | E7: Start | F7: Ski Time | G7: P | H7: P | I7: S | J7: S | K7: T | L7: Final | M7: Behind | N7: NA-Pts | O7: % | P7: StNr | Q7: FINISH | S7: Points
A8: 1 | B8: 53 | C8: Bowler, Bill | D8: Biathlon Alberta | E8: 11:00:50 | G8: 0 | H8: 1 | I8: 3 | J8: 3 | K8: =IF(ISBLANK(G8),"",G8+H8+I8+J8) -> 7 | L8: =IF(Q8>0,Q8-E8,"") -> 00:32:12 | M8: =IF(Q8>0,L8-L$8,"") -> 00:00:00 | N8: =IF(Q8>0,S8,"") -> 50 | O8: =IF(Q8>0,2-(L8/((L$8+L$9+L$10)/3)),"") -> 101.73% | P8: =B8 -> 53 | Q8: 11:33:02 | S8: 50
A9: 2 | B9: 51 | C9: Roberts, Wynn | D9: National Guard | E9: 11:00:30 | G9: 3 | H9: 2 | I9: 0 | J9: 3 | K9: 8 | L9: 00:32:17.400 | M9: 00:00:05.400 | N9: 46 | O9: 101.46% | P9: 51 | Q9: 11:32:47.400 | S9: 46
A10: 3 | B10: 54 | C10: Goessling, Raleigh | D10: MWSC | E10: 11:01:00 | G10: 0 | H10: 4 | I10: 3 | J10: 3 | K10: 10 | L10: 00:33:48.700 | M10: 00:01:36.700 | N10: 43 | O10: 96.81% | P10: 54 | Q10: 11:34:48.700 | S10: 43
A11: 4 | B11: 56 | C11: Gibson, Michael | D11: Vermont Biathlon | E11: 11:01:20 | G11: 3 | H11: 2 | I11: 3 | J11: 4 | K11: 12 | L11: 00:35:10.700 | M11: 00:02:58.700 | N11: 40 | O11: 92.64% | P11: 56 | Q11: 11:36:30.700 | S11: 40
A12: 5 | B12: 57 | C12: Roberts, Conrad | D12: National Guard | E12: 11:01:30 | G12: 2 | H12: 2 | I12: 1 | J12: 3 | K12: 8 | L12: 00:35:39.200 | M12: 00:03:27.200 | N12: 37 | O12: 91.19% | P12: 57 | Q12: 11:37:09.200 | S12: 37
A13: 6 | B13: 52 | C13: Johnson, Mark | D13: Mt.Itasca | E13: 11:00:40 | G13: 1 | H13: 1 | I13: 5 | J13: 3 | K13: 10 | L13: 00:35:47.400 | M13: 00:03:35.400 | N13: 34 | O13: 90.77% | P13: 52 | Q13: 11:36:27.400 | S13: 34
A14: 7 | B14: 58 | C14: Claas, Marc | D14: Wisconsin Biathlon | E14: 11:01:40 | G14: 3 | H14: 2 | I14: 3 | J14: 3 | K14: 11 | L14: 00:45:28.300 | M14: 00:13:16.300 | N14: 32 | O14: 61.23% | P14: 58 | Q14: 11:47:08.300 | S14: 32
A15: 8 | K15: =IF(ISBLANK(G15),"",G15+H15+I15+J15) ->  | L15: =IF(Q15>0,Q15-E15,"") ->  | M15: =IF(Q15>0,L15-L$8,"") ->  | N15: =IF(Q15>0,S15,"") ->  | O15: =IF(Q15>0,2-(L15/((L$8+L$9+L$10)/3)),"") ->  | P15: =B15 -> 0 | S15: 30
A16: 9 | P16: 0 | S16: 28
A17: 10 | P17: 0 | S17: 26
A18: 11 | P18: 0 | S18: 24
A19: 12 | P19: 0 | S19: 22
A20: 13 | P20: 0 | S20: 20
A21: 14 | P21: 0 | S21: 18
A22: 15 | P22: 0 | S22: 16
A23: 16 | P23: 0 | S23: 15
A24: 17 | P24: 0 | S24: 14
S25: 13
S26: 12
S27: 11
S28: 10 | V28: `
S29: 9
S30: 8
S31: 7
S32: 6
S33: 5
S34: 4
S35: 3
S36: 2
S37: 1

Sheet Jr Men
A1: =COVER!A1 -> U.S. IBU Cup Trials & MN Cup #3
A2: =COVER!A2 -> 2012-12-16
A3: Jr. MEN'S 12.5 km PURSUIT COMPETITION
A4: =COVER!A4 -> FINAL RESULTS
A5: =COVER!A5 -> Coleraine, MN | O5: =COVER!N5 -> Mt. Itasca Nordic Ski Association
A7: Pos. | B7: StNr | C7: Name | D7: Club/Team/Hometown, State | E7: Start | F7: Ski Time | G7: P | H7: P | I7: S | J7: S | K7: T | L7: Final | M7: Behind | N7: NA-Pts | O7: % | P7: StNr | Q7: FINISH | S7: Points
A8: 1 | B8: 55 | C8: Dalberg, Jacob | D8: National Guard | E8: 11:01:10 | G8: 1 | H8: 0 | I8: 4 | J8: 1 | K8: =IF(ISBLANK(G8),"",G8+H8+I8+J8) -> 6 | L8: =IF(Q8>0,Q8-E8,"") -> 00:33:37.500 | M8: =IF(Q8>0,L8-L$8,"") -> 00:00:00 | N8: =IF(Q8>0,S8,"") -> 50 | O8: =IF(Q8>0,2-(L8/((L$8+L$9+L$10)/3)),"") ->  | P8: =B8 -> 55 | Q8: 11:34:47.500 | S8: 50
A9: 2 | B9: 59 | C9: Nelson, Zach | D9: NNW | E9: 11:01:50 | G9: 5 | H9: 4 | I9: 5 | J9: 5 | K9: 19 | L9: 00:48:41.900 | M9: 00:15:04.400 | N9: 46 | P9: 59 | Q9: 11:50:31.900 | S9: 46
A10: 3 | P10: 0 | S10: 43
A11: 4 | P11: 0 | S11: 40
A12: 5 | P12: 0 | S12: 37
A13: 6 | P13: 0 | S13: 34
A14: 7 | P14: 0 | S14: 32
A15: 8 | P15: 0 | S15: 30
K16: =IF(ISBLANK(G16),"",G16+H16+I16+J16) ->  | L16: =IF(Q16>0,Q16-E16,"") ->  | M16: =IF(Q16>0,L16-L$8,"") ->  | N16: =IF(Q16>0,S16,"") ->  | O16: =IF(Q16>0,2-(L16/((L$8+L$9+L$10)/3)),"") ->  | S16: 28
K17: =IF(ISBLANK(G17),"",G17+H17+I17+J17) ->  | S17: 26
K18: =IF(ISBLANK(G18),"",G18+H18+I18+J18) ->  | S18: 24
S19: 22
S20: 20
S21: 18
S22: 16
S23: 15
S24: 14
S25: 13
S26: 12
S27: 11
S28: 10
S29: 9
S30: 8
S31: 7
S32: 6
S33: 5
S34: 4
S35: 3
S36: 2
S37: 1

Sheet Men's Comb
A1: =COVER!A1 -> U.S. IBU Cup Trials & MN Cup #3
A2: =COVER!A2 -> 2012-12-16
A3: MEN'S COMBINED 12.5 km PURSUIT COMPETITION
A4: =COVER!A4 -> FINAL RESULTS
A5: =COVER!A5 -> Coleraine, MN | O5: =COVER!N5 -> Mt. Itasca Nordic Ski Association
A7: Pos. | B7: StNr | C7: Name | D7: Club/Team/Hometown, State | E7: Start | F7: Ski Time | G7: P | H7: P | I7: S | J7: S | K7: T | L7: Final | M7: Behind | N7: NA-Pts | O7: % | P7: StNr | Q7: FINISH | S7: Points
A8: 1 | B8: 53 | C8: Bowler, Bill | D8: Biathlon Alberta | E8: 11:00:50 | G8: 0 | H8: 1 | I8: 3 | J8: 3 | K8: =IF(ISBLANK(G8),"",G8+H8+I8+J8) -> 7 | L8: =IF(Q8>0,Q8-E8,"") -> 00:32:12 | M8: =IF(Q8>0,L8-L$8,"") -> 00:00:00 | N8: =IF(Q8>0,S8,"") -> 50 | O8: =IF(Q8>0,2-(L8/((L$8+L$9+L$10)/3)),"") -> 101.54% | P8: =B8 -> 53 | Q8: 11:33:02 | S8: 50
A9: 2 | B9: 51 | C9: Roberts, Wynn | D9: National Guard | E9: 11:00:30 | G9: 3 | H9: 2 | I9: 0 | J9: 3 | K9: 8 | L9: 00:32:17.400 | M9: 00:00:05.400 | N9: 46 | O9: 101.27% | P9: 51 | Q9: 11:32:47.400 | S9: 46
A10: 3 | B10: 55 | C10: Dalberg, Jacob | D10: National Guard | E10: 11:01:10 | G10: 1 | H10: 0 | I10: 4 | J10: 1 | K10: 6 | L10: 00:33:37.500 | M10: 00:01:25.500 | N10: 43 | O10: 97.19% | P10: 55 | Q10: 11:34:47.500 | S10: 43
A11: 4 | B11: 54 | C11: Goessling, Raleigh | D11: MWSC | E11: 11:01:00 | G11: 0 | H11: 4 | I11: 3 | J11: 3 | K11: 10 | L11: 00:33:48.700 | M11: 00:01:36.700 | N11: 40 | O11: 96.62% | P11: 54 | Q11: 11:34:48.700 | S11: 40
A12: 5 | B12: 56 | C12: Gibson, Michael | D12: Vermont Biathlon | E12: 11:01:20 | G12: 3 | H12: 2 | I12: 3 | J12: 4 | K12: 12 | L12: 00:35:10.700 | M12: 00:02:58.700 | N12: 37 | O12: 92.44% | P12: 56 | Q12: 11:36:30.700 | S12: 37
A13: 6 | B13: 57 | C13: Roberts, Conrad | D13: National Guard | E13: 11:01:30 | G13: 2 | H13: 2 | I13: 1 | J13: 3 | K13: 8 | L13: 00:35:39.200 | M13: 00:03:27.200 | N13: 34 | O13: 90.99% | P13: 57 | Q13: 11:37:09.200 | S13: 34
A14: 7 | B14: 52 | C14: Johnson, Mark | D14: Mt.Itasca | E14: 11:00:40 | G14: 1 | H14: 1 | I14: 5 | J14: 3 | K14: 10 | L14: 00:35:47.400 | M14: 00:03:35.400 | N14: 32 | O14: 90.57% | P14: 52 | Q14: 11:36:27.400 | S14: 32
A15: 8 | B15: 58 | C15: Claas, Marc | D15: Wisconsin Biathlon | E15: 11:01:40 | G15: 3 | H15: 2 | I15: 3 | J15: 3 | K15: 11 | L15: 00:45:28.300 | M15: 00:13:16.300 | N15: 30 | O15: 60.96% | P15: 58 | Q15: 11:47:08.300 | S15: 30
A16: 9 | B16: 59 | C16: Nelson, Zach | D16: NNW | E16: 11:01:50 | G16: 5 | H16: 4 | I16: 5 | J16: 5 | K16: 19 | L16: 00:48:41.900 | M16: 00:16:29.900 | N16: 28 | O16: 51.10% | P16: 59 | Q16: 11:50:31.900 | S16: 28
L17: =IF(Q17>0,Q17-E17,"") ->  | M17: =IF(Q17>0,L17-L$8,"") ->  | N17: =IF(Q17>0,S17,"") ->  | O17: =IF(Q17>0,2-(L17/((L$8+L$9+L$10)/3)),"") ->  | S17: 26
S18: 24
S19: 22
S20: 20
S21: 18
S22: 16
S23: 15
S24: 14
S25: 13
S26: 12
S27: 11
S28: 10
S29: 9
S30: 8
S31: 7
S32: 6
S33: 5
S34: 4
S35: 3
S36: 2
S37: 1

Sheet Women
A1: =COVER!A1 -> U.S. IBU Cup Trials & MN Cup #3
A2: =COVER!A2 -> 2012-12-16
A3: WOMEN'S 10 km PURSUIT COMPETITION
A4: =COVER!A4 -> FINAL RESULTS
A5: =COVER!A5 -> Coleraine, MN | O5: =COVER!N5 -> Mt. Itasca Nordic Ski Association
A7: Pos. | B7: StNr | C7: Name | D7: Club/Team/Hometown, State | E7: Start | F7: Ski Time | G7: P | H7: P | I7: S | J7: S | K7: T | L7: Final | M7: Behind | N7: NA-Pts | O7: % | P7: StNr | Q7: FINISH | S7: Points
A8: 1 | B8: 62 | C8: Dreissigacker, Hannah | D8: Craftsbury GRP/Nat.Team | E8: 11:03:40 | G8: 0 | H8: 1 | I8: 2 | J8: 1 | K8: =IF(ISBLANK(G8),"",G8+H8+I8+J8) -> 4 | L8: =IF(Q8>0,Q8-E8,"") -> 00:31:36.400 | M8: =IF(Q8>0,L8-L$8,"") -> 00:00:00 | N8: =IF(Q8>0,S8,"") -> 50 | O8: =IF(Q8>0,2-(L8/((L$8+L$9+L$10)/3)),"") -> 102.29% | P8: =B8 -> 62 | Q8: 11:35:16.400 | S8: 50
A9: 2 | B9: 63 | C9: Howe, Katrina | D9: MWSC | E9: 11:03:50 | G9: 1 | H9: 0 | I9: 2 | J9: 2 | K9: =IF(ISBLANK(G9),"",G9+H9+I9+J9) -> 5 | L9: =IF(Q9>0,Q9-E9,"") -> 00:32:12.800 | M9: =IF(Q9>0,L9-L$8,"") -> 00:00:36.400 | N9: =IF(Q9>0,S9,"") -> 46 | O9: =IF(Q9>0,2-(L9/((L$8+L$9+L$10)/3)),"") -> 100.42% | P9: =B9 -> 63 | Q9: 11:36:02.800 | S9: 46
A10: 3 | B10: 61 | C10: Malcolm, Corrine | D10: National Team | E10: 11:03:30 | G10: 3 | H10: 4 | I10: 0 | J10: 0 | K10: =IF(ISBLANK(G10),"",G10+H10+I10+J10) -> 7 | L10: =IF(Q10>0,Q10-E10,"") -> 00:33:13.600 | M10: =IF(Q10>0,L10-L$8,"") -> 00:01:37.200 | N10: =IF(Q10>0,S10,"") -> 43 | O10: =IF(Q10>0,2-(L10/((L$8+L$9+L$10)/3)),"") -> 97.29% | P10: =B10 -> 61 | Q10: 11:36:43.600 | S10: 43
A11: 4 | B11: 66 | C11: Mayo, Andrea | E11: 11:04:20 | G11: 0 | H11: 0 | I11: 2 | J11: 3 | K11: =IF(ISBLANK(G11),"",G11+H11+I11+J11) -> 5 | L11: =IF(Q11>0,Q11-E11,"") -> 00:37:54.700 | M11: =IF(Q11>0,L11-L$8,"") -> 00:06:18.300 | N11: =IF(Q11>0,S11,"") -> 40 | O11: =IF(Q11>0,2-(L11/((L$8+L$9+L$10)/3)),"") -> 82.80% | P11: =B11 -> 66 | Q11: 11:42:14.700 | S11: 40
A12: 5 | B12: 65 | C12: Wygant, Jennifer | E12: 11:04:10 | G12: 3 | H12: 1 | I12: 1 | J12: 2 | K12: =IF(ISBLANK(G12),"",G12+H12+I12+J12) -> 7 | L12: =IF(Q12>0,Q12-E12,"") -> 00:37:57.500 | M12: =IF(Q12>0,L12-L$8,"") -> 00:06:21.100 | N12: =IF(Q12>0,S12,"") -> 37 | O12: =IF(Q12>0,2-(L12/((L$8+L$9+L$10)/3)),"") -> 82.66% | P12: =B12 -> 65 | Q12: 11:42:07.500 | S12: 37
A13: 6 | K13: =IF(ISBLANK(G13),"",G13+H13+I13+J13) ->  | L13: =IF(Q13>0,Q13-E13,"") ->  | M13: =IF(Q13>0,L13-L$8,"") ->  | N13: =IF(Q13>0,S13,"") ->  | O13: =IF(Q13>0,2-(L13/((L$8+L$9+L$10)/3)),"") ->  | P13: =B13 -> 0 | S13: 34
A14: 7 | P14: 0 | S14: 32
A15: 8 | P15: 0 | S15: 30
A16: 9 | P16: 0 | S16: 28
A17: 10 | P17: 0 | S17: 26
L18: =IF(Q18>0,Q18-E18,"") ->  | M18: =IF(Q18>0,L18-L$8,"") ->  | N18: =IF(Q18>0,S18,"") ->  | O18: =IF(Q18>0,2-(L18/((L$8+L$9+L$10)/3)),"") ->  | S18: 24
S19: 22
S20: 20
S21: 18
S22: 16
S23: 15
S24: 14
S25: 13
S26: 12
S27: 11
S28: 10
S29: 9
S30: 8
S31: 7
S32: 6
S33: 5
S34: 4
S35: 3
S36: 2
S37: 1

Sheet Jr Women
A1: =COVER!A1 -> U.S. IBU Cup Trials & MN Cup #3
A2: =COVER!A2 -> 2012-12-16
A3: Jr. WOMEN'S 10 km PURSUIT COMPETITION
A4: =COVER!A4 -> FINAL RESULTS
A5: =COVER!A5 -> Coleraine, MN | O5: =COVER!N5 -> Mt. Itasca Nordic Ski Association
A7: Pos. | B7: StNr | C7: Name | D7: Club/Team/Hometown, State | E7: Start | F7: Ski Time | G7: P | H7: P | I7: S | J7: S | K7: T | L7: Final | M7: Behind | N7: NA-Pts | O7: % | P7: StNr | Q7: FINISH | S7: Points
A8: 1 | B8: 64 | C8: Kubek, Anna | D8: Mt.Itasca | E8: 11:04:00 | G8: 0 | H8: 2 | I8: 2 | J8: 2 | K8: =IF(ISBLANK(G8),"",G8+H8+I8+J8) -> 6 | L8: =IF(Q8>0,Q8-E8,"") -> 00:34:14.300 | M8: =IF(Q8>0,L8-L$8,"") -> 00:00:00 | N8: =IF(Q8>0,S8,"") -> 50 | O8: =IF(Q8>0,2-(L8/((L$8+L$9+L$10)/3)),"") -> 107.64% | P8: =B8 -> 64 | Q8: 11:38:14.300 | S8: 50
A9: 2 | B9: 69 | C9: Ruzich, Jenna | D9: NNW | E9: 11:04:50 | G9: 1 | H9: 1 | I9: 0 | J9: 1 | K9: 3 | L9: 00:38:14 | M9: 00:03:59.700 | N9: 46 | O9: 96.86% | P9: 69 | Q9: 11:43:04 | S9: 46
A10: 3 | B10: 70 | C10: Manning, Melissa | D10: MWSC | E10: 11:05:00 | G10: 1 | H10: 1 | I10: 1 | J10: 1 | K10: 4 | L10: 00:38:44.300 | M10: 00:04:30 | N10: 43 | O10: 95.50% | P10: 70 | Q10: 11:43:44.300 | S10: 43
A11: 4 | B11: 67 | C11: Hynes, Silke | D11: Vermont Biathlon | E11: 11:04:30 | G11: 3 | H11: 1 | I11: 1 | J11: 1 | K11: 6 | L11: 00:38:50.200 | M11: 00:04:35.900 | N11: 40 | O11: 95.23% | P11: 67 | Q11: 11:43:20.200 | S11: 40
A12: 5 | B12: 68 | C12: Ellingson, Siena | D12: TC Biathlon | E12: 11:04:40 | G12: 0 | H12: 4 | I12: 1 | J12: 3 | K12: 8 | L12: 00:40:04.400 | M12: 00:05:50.100 | N12: 37 | O12: 91.90% | P12: 68 | Q12: 11:44:44.400 | S12: 37
A13: 6 | B13: 71 | C13: Peterson, Rachel | D13: Hastings | E13: 11:05:10 | G13: 1 | H13: 2 | I13: 5 | J13: 5 | K13: 13 | L13: 00:47:33.900 | M13: 00:13:19.600 | N13: 34 | O13: 71.69% | P13: 71 | Q13: 11:52:43.900 | S13: 34
L14: =IF(Q14>0,Q14-E14,"") ->  | M14: =IF(Q14>0,L14-L$8,"") ->  | N14: =IF(Q14>0,S14,"") ->  | O14: =IF(Q14>0,2-(L14/((L$8+L$9+L$10)/3)),"") ->  | S14: 32
S15: 30
S16: 28
S17: 26
S18: 24
S19: 22
S20: 20
S21: 18
S22: 16
S23: 15
S24: 14
S25: 13
S26: 12
S27: 11
S28: 10
S29: 9
S30: 8
S31: 7
S32: 6
S33: 5
S34: 4
S35: 3
S36: 2
S37: 1

Sheet Women's Comb
A1: =COVER!A1 -> U.S. IBU Cup Trials & MN Cup #3
A2: =COVER!A2 -> 2012-12-16
A3: WOMEN'S COMBINED 10 km PURSUIT COMPETITION
A4: =COVER!A4 -> FINAL RESULTS
A5: =COVER!A5 -> Coleraine, MN | O5: =COVER!N5 -> Mt. Itasca Nordic Ski Association
A7: Pos. | B7: StNr | C7: Name | D7: Club/Team/Hometown, State | E7: Start | F7: Ski Time | G7: P | H7: P | I7: S | J7: S | K7: T | L7: Final | M7: Behind | N7: NA-Pts | O7: % | P7: StNr | Q7: FINISH | S7: Points
A8: 1 | B8: 62 | C8: Dreissigacker, Hannah | D8: Craftsbury GRP/Nat.Team | E8: 11:03:40 | G8: 0 | H8: 1 | I8: 2 | J8: 1 | K8: =IF(ISBLANK(G8),"",G8+H8+I8+J8) -> 4 | L8: =IF(Q8>0,Q8-E8,"") -> 00:31:36.400 | M8: =IF(Q8>0,L8-L$8,"") -> 00:00:00 | N8: =IF(Q8>0,S8,"") -> 50 | O8: =IF(Q8>0,2-(L8/((L$8+L$9+L$10)/3)),"") -> 102.29% | P8: =B8 -> 62 | Q8: 11:35:16.400 | S8: 50
A9: 2 | B9: 63 | C9: Howe, Katrina | D9: MWSC | E9: 11:03:50 | G9: 1 | H9: 0 | I9: 2 | J9: 2 | K9: 5 | L9: 00:32:12.800 | M9: 00:00:36.400 | N9: 46 | O9: 100.42% | P9: 63 | Q9: 11:36:02.800 | S9: 46
A10: 3 | B10: 61 | C10: Malcolm, Corrine | D10: National Team | E10: 11:03:30 | G10: 3 | H10: 4 | I10: 0 | J10: 0 | K10: 7 | L10: 00:33:13.600 | M10: 00:01:37.200 | N10: 43 | O10: 97.29% | P10: 61 | Q10: 11:36:43.600 | S10: 43
A11: 4 | B11: 64 | C11: Kubek, Anna | D11: Mt.Itasca | E11: 11:04:00 | G11: 0 | H11: 2 | I11: 2 | J11: 2 | K11: 6 | L11: 00:34:14.300 | M11: 00:02:37.900 | N11: 40 | O11: 94.16% | P11: 64 | Q11: 11:38:14.300 | S11: 40
A12: 5 | B12: 66 | C12: Mayo, Andrea | E12: 11:04:20 | G12: 0 | H12: 0 | I12: 2 | J12: 3 | K12: 5 | L12: 00:37:54.700 | M12: 00:06:18.300 | N12: 37 | O12: 82.80% | P12: 66 | Q12: 11:42:14.700 | S12: 37
A13: 6 | B13: 65 | C13: Wygant, Jennifer | E13: 11:04:10 | G13: 3 | H13: 1 | I13: 1 | J13: 2 | K13: 7 | L13: 00:37:57.500 | M13: 00:06:21.100 | N13: 34 | O13: 82.66% | P13: 65 | Q13: 11:42:07.500 | S13: 34
A14: 7 | B14: 69 | C14: Ruzich, Jenna | D14: NNW | E14: 11:04:50 | G14: 1 | H14: 1 | I14: 0 | J14: 1 | K14: 3 | L14: 00:38:14 | M14: 00:06:37.600 | N14: 32 | O14: 81.81% | P14: 69 | Q14: 11:43:04 | S14: 32
A15: 8 | B15: 70 | C15: Manning, Melissa | D15: MWSC | E15: 11:05:00 | G15: 1 | H15: 1 | I15: 1 | J15: 1 | K15: 4 | L15: 00:38:44.300 | M15: 00:07:07.900 | N15: 30 | O15: 80.25% | P15: 70 | Q15: 11:43:44.300 | S15: 30
A16: 9 | B16: 67 | C16: Hynes, Silke | D16: Vermont Biathlon | E16: 11:04:30 | G16: 3 | H16: 1 | I16: 1 | J16: 1 | K16: 6 | L16: 00:38:50.200 | M16: 00:07:13.800 | N16: 28 | O16: 79.94% | P16: 67 | Q16: 11:43:20.200 | S16: 28
A17: 10 | B17: 68 | C17: Ellingson, Siena | D17: TC Biathlon | E17: 11:04:40 | G17: 0 | H17: 4 | I17: 1 | J17: 3 | K17: 8 | L17: 00:40:04.400 | M17: 00:08:28 | N17: 26 | O17: 76.12% | P17: 68 | Q17: 11:44:44.400 | S17: 26
A18: 11 | B18: 71 | C18: Peterson, Rachel | D18: Hastings | E18: 11:05:10 | G18: 1 | H18: 2 | I18: 5 | J18: 5 | K18: 13 | L18: 00:47:33.900 | M18: 00:15:57.500 | N18: 24 | O18: 52.96% | P18: 71 | Q18: 11:52:43.900 | S18: 24
L19: =IF(Q19>0,Q19-E19,"") ->  | M19: =IF(Q19>0,L19-L$8,"") ->  | N19: =IF(Q19>0,S19,"") ->  | O19: =IF(Q19>0,2-(L19/((L$8+L$9+L$10)/3)),"") ->  | S19: 22
S20: 20
S21: 18
S22: 16
S23: 15
S24: 14
S25: 13
S26: 12
S27: 11
S28: 10
S29: 9
S30: 8
S31: 7
S32: 6
S33: 5
S34: 4
S35: 3
S36: 2
S37: 1

Sheet Youth Men
A1: =COVER!A1 -> U.S. IBU Cup Trials & MN Cup #3
A2: =COVER!A2 -> 2012-12-16
A3: YOUTH MEN'S 10 km PURSUIT COMPETITION
A4: =COVER!A4 -> FINAL RESULTS
A5: =COVER!A5 -> Coleraine, MN | O5: =COVER!N5 -> Mt. Itasca Nordic Ski Association
A7: Pos. | B7: StNr | C7: Name | D7: Club/Team/Hometown, State | E7: Start | F7: Ski Time | G7: P | H7: P | I7: S | J7: S | K7: T | L7: Final | M7: Behind | N7: NA-Pts | O7: % | P7: StNr | Q7: FINISH | S7: Points
A8: 1 | B8: 75 | C8: Mcelroy, Jordan | D8: National Guard | E8: 11:20:00 | G8: 1 | H8: 1 | I8: 1 | J8: 3 | K8: =IF(ISBLANK(G8),"",G8+H8+I8+J8) -> 6 | L8: =IF(Q8>0,Q8-E8,"") -> 00:30:59 | M8: =IF(Q8>0,L8-L$8,"") -> 00:00:00 | N8: =IF(Q8>0,S8,"") -> 50 | O8: =IF(Q8>0,2-(L8/((L$8+L$9+L$10)/3)),"") -> 105.14% | P8: =B8 -> 75 | Q8: 11:50:59 | S8: 50
A9: 2 | B9: 76 | C9: Ellingson, Jakob | D9: TC Biathlon | E9: 11:20:10 | G9: 2 | H9: 3 | I9: 3 | J9: 1 | K9: 9 | L9: 00:32:59.500 | M9: =IF(Q9>0,L9-L$8,"") -> 00:02:00.500 | N9: =IF(Q9>0,S9,"") -> 46 | O9: =IF(Q9>0,2-(L9/((L$8+L$9+L$10)/3)),"") -> 98.99% | P9: 76 | Q9: 11:53:09.500 | S9: 46
A10: 3 | B10: 79 | C10: Hadrits, Ty | D10: NNW | E10: 11:20:40 | G10: 1 | H10: 0 | I10: 2 | J10: 3 | K10: 6 | L10: 00:34:00.900 | M10: 00:03:01.900 | N10: =IF(Q10>0,S10,"") -> 43 | O10: 95.86% | P10: 79 | Q10: 11:54:40.900 | S10: 43
A11: 4 | B11: 77 | C11: Betsinger, Jalen | D11: Blackhawk Biathlon | E11: 11:20:20 | G11: 2 | H11: 4 | I11: 3 | J11: 0 | K11: 9 | L11: 00:34:10 | M11: 00:03:11 | N11: =IF(Q11>0,S11,"") -> 40 | O11: 95.40% | P11: 77 | Q11: 11:54:30 | S11: 40
A12: 5 | B12: 81 | C12: Baker, Zean | D12: NNW | E12: 11:21:00 | G12: 2 | H12: 2 | I12: 2 | J12: 3 | K12: 9 | L12: 00:34:42.200 | M12: 00:03:43.200 | N12: =IF(Q12>0,S13,"") -> 34 | O12: 93.75% | P12: 81 | Q12: 11:55:42.200 | S12: 37
A13: 6 | B13: 80 | C13: Fairbanks, Joe | D13: Duluth/Esko | E13: 11:20:50 | G13: 5 | H13: 4 | I13: 3 | J13: 3 | K13: 15 | L13: 00:39:08.200 | M13: 00:08:09.200 | N13: 32 | O13: 80.18% | P13: 80 | Q13: 11:59:58.200 | S13: 34
A14: 7 | K14: =IF(ISBLANK(G14),"",G14+H14+I14+J14) ->  | L14: =IF(Q14>0,Q14-E14,"") ->  | M14: =IF(Q14>0,L14-L$8,"") ->  | O14: =IF(Q14>0,2-(L14/((L$8+L$9+L$10)/3)),"") ->  | P14: =B14 -> 0 | S14: 32
A15: 8 | P15: 0 | S15: 30
A16: 9 | P16: 0 | S16: 28
A17: 10 | P17: 0 | S17: 26
A18: 11 | K18: =IF(ISBLANK(G18),"",G18+H18+I18+J18) ->  | L18: =IF(Q18>0,Q18-E18,"") ->  | M18: =IF(Q18>0,L18-L$8,"") ->  | O18: =IF(Q18>0,2-(L18/((L$8+L$9+L$10)/3)),"") ->  | S18: 24
S19: 22
S20: 20
S21: 18
S22: 16
S23: 15
S24: 14
S25: 13
S26: 12
S27: 11
S28: 10
S29: 9
S30: 8
S31: 7
S32: 6
S33: 5
S34: 4
S35: 3
S36: 2
S37: 1

Sheet Men Master
A1: =COVER!A1 -> U.S. IBU Cup Trials & MN Cup #3
A2: =COVER!A2 -> 2012-12-16
A3: MASTER MEN'S 10 km PURSUIT COMPETITION
A4: =COVER!A4 -> FINAL RESULTS
A5: =COVER!A5 -> Coleraine, MN | O5: =COVER!N5 -> Mt. Itasca Nordic Ski Association
A7: Pos. | B7: StNr | C7: Name | D7: Club/Team/Hometown, State | E7: Start | F7: Ski Time | G7: P | H7: P | I7: S | J7: S | K7: T | L7: Final | M7: Behind | N7: NA-Pts | O7: % | P7: StNr | Q7: FINISH | S7: Points
A8: 1 | B8: 84 | C8: Quinlan, Bill | D8: Colorado Biathlon | E8: 11:21:30 | G8: 1 | H8: 1 | I8: 3 | J8: 0 | K8: =IF(ISBLANK(G8),"",G8+H8+I8+J8) -> 5 | L8: =IF(Q8>0,Q8-E8,"") -> 00:39:22 | M8: =IF(Q8>0,L8-L$8,"") -> 00:00:00 | N8: =IF(Q8>0,S8,"") -> 50 | O8: =IF(Q8>0,2-(L8/((L$8+L$9+L$10)/3)),"") -> 108.88% | P8: =B8 -> 84 | Q8: 12:00:52 | S8: 50
A9: 2 | B9: 83 | C9: Peterson, Paul | D9: National Guard | E9: 11:21:20 | G9: 3 | H9: 3 | I9: 3 | J9: 4 | K9: =IF(ISBLANK(G9),"",G9+H9+I9+J9) -> 13 | L9: =IF(Q9>0,Q9-E9,"") -> 00:40:17.500 | M9: =IF(Q9>0,L9-L$8,"") -> 00:00:55.500 | N9: =IF(Q9>0,S9,"") -> 46 | O9: =IF(Q9>0,2-(L9/((L$8+L$9+L$10)/3)),"") -> 106.74% | P9: =B9 -> 83 | Q9: 12:01:37.500 | S9: 46
A10: 3 | B10: 87 | C10: Christiansen, Pelle | D10: NNW | E10: 11:22:00 | G10: 3 | H10: 2 | I10: 3 | J10: 5 | K10: =IF(ISBLANK(G10),"",G10+H10+I10+J10) -> 13 | L10: =IF(Q10>0,Q10-E10,"") -> 00:49:57.400 | M10: =IF(Q10>0,L10-L$8,"") -> 00:10:35.400 | N10: =IF(Q10>0,S10,"") -> 43 | O10: =IF(Q10>0,2-(L10/((L$8+L$9+L$10)/3)),"") -> 84.37% | P10: =B10 -> 87 | Q10: 12:11:57.400 | S10: 43
A11: 4 | B11: 85 | C11: Bradley, Tyler | D11: National Guard | E11: 11:21:40 | G11: 5 | H11: 3 | I11: 5 | J11: 4 | K11: =IF(ISBLANK(G11),"",G11+H11+I11+J11) -> 17 | L11: =IF(Q11>0,Q11-E11,"") -> 00:50:29.700 | M11: =IF(Q11>0,L11-L$8,"") -> 00:11:07.700 | N11: =IF(Q11>0,S11,"") -> 40 | O11: =IF(Q11>0,2-(L11/((L$8+L$9+L$10)/3)),"") -> 83.13% | P11: =B11 -> 85 | Q11: 12:12:09.700 | S11: 40
A12: 5 | B12: 86 | C12: Hynes, Jeremiah | D12: Ontario Biathlon | E12: 11:21:50 | G12: 3 | H12: 4 | I12: 5 | J12: 5 | K12: =IF(ISBLANK(G12),"",G12+H12+I12+J12) -> 17 | L12: =IF(Q12>0,Q12-E12,"") -> 00:59:10.700 | M12: =IF(Q12>0,L12-L$8,"") -> 00:19:48.700 | N12: =IF(Q12>0,S12,"") -> 37 | O12: =IF(Q12>0,2-(L12/((L$8+L$9+L$10)/3)),"") -> 63.03% | P12: =B12 -> 86 | Q12: 12:21:00.700 | S12: 37
A13: 6 | K13: =IF(ISBLANK(G13),"",G13+H13+I13+J13) ->  | L13: =IF(Q13>0,Q13-E13,"") ->  | M13: =IF(Q13>0,L13-L$8,"") ->  | N13: =IF(Q13>0,S13,"") ->  | O13: =IF(Q13>0,2-(L13/((L$8+L$9+L$10)/3)),"") ->  | P13: =B13 -> 0 | S13: 34
A14: 7 | P14: 0 | S14: 32
A15: 8 | P15: 0 | S15: 30
A16: 9 | P16: 0 | S16: 28
S17: 26
S18: 22
L19: =IF(Q19>0,Q19-E19,"") ->  | M19: =IF(Q19>0,L19-L$8,"") ->  | N19: =IF(Q19>0,S19,"") ->  | O19: =IF(Q19>0,2-(L19/((L$8+L$9+L$10)/3)),"") ->  | S19: 20
S20: 18
S21: 16
S22: 15
S23: 14
S24: 13
S25: 12
S26: 11
S27: 10 | V27: `
S28: 9
S29: 8
S30: 7
S31: 6
S32: 5
S33: 4
S34: 3
S35: 2
S36: 1

Sheet Boys
A1: =COVER!A1 -> U.S. IBU Cup Trials & MN Cup #3
A2: =COVER!A2 -> 2012-12-16
A3: BOY'S 7.5 km PURSUIT COMPETITION
A4: =COVER!A4 -> FINAL RESULTS
A5: =COVER!A5 -> Coleraine, MN | O5: =COVER!N5 -> Mt. Itasca Nordic Ski Association
A7: Pos. | B7: StNr | C7: Name | D7: Club/Team/Hometown, State | E7: Start | F7: Ski Time | G7: P | H7: P | I7: S | J7: S | K7: T | L7: Final | M7: Behind | N7: NA-Pts | O7: % | P7: StNr | Q7: FINISH | S7: Points
A8: 1 | B8: 88 | C8: Christiansen, Cam | D8: NNW | E8: 11:22:10 | G8: 2 | H8: 1 | I8: 5 | J8: 1 | K8: =IF(ISBLANK(G8),"",G8+H8+I8+J8) -> 9 | L8: =IF(Q8>0,Q8-E8,"") -> 00:35:47.600 | M8: =IF(Q8>0,L8-L$8,"") -> 00:00:00 | N8: =IF(Q8>0,S8,"") -> 50 | O8: =IF(Q8>0,2-(L8/((L$8+L$9+L$10)/3)),"") -> 103.71% | P8: =B8 -> 88 | Q8: 11:57:57.600 | S8: 50
A9: 2 | B9: 89 | C9: Pascuzzo, Joseph | D9: Ontario Biathlon | E9: 11:22:20 | G9: 4 | H9: 2 | I9: 1 | J9: 1 | K9: =IF(ISBLANK(G9),"",G9+H9+I9+J9) -> 8 | L9: =IF(Q9>0,Q9-E9,"") -> 00:35:57.500 | M9: =IF(Q9>0,L9-L$8,"") -> 00:00:09.900 | N9: =IF(Q9>0,S9,"") -> 46 | O9: =IF(Q9>0,2-(L9/((L$8+L$9+L$10)/3)),"") -> 103.26% | P9: =B9 -> 89 | Q9: 11:58:17.500 | S9: 46
A10: 3 | B10: 90 | C10: Quinn, Toby | D10: Lake Superior Biathlon | E10: 11:22:30 | G10: 4 | H10: 4 | I10: 5 | J10: 4 | K10: =IF(ISBLANK(G10),"",G10+H10+I10+J10) -> 17 | L10: =IF(Q10>0,Q10-E10,"") -> 00:39:45.600 | M10: =IF(Q10>0,L10-L$8,"") -> 00:03:58 | N10: =IF(Q10>0,S10,"") -> 43 | O10: =IF(Q10>0,2-(L10/((L$8+L$9+L$10)/3)),"") -> 93.03% | P10: =B10 -> 90 | Q10: 12:02:15.600 | S10: 43
A11: 4 | K11: =IF(ISBLANK(G11),"",G11+H11+I11+J11) ->  | L11: =IF(Q11>0,Q11-E11,"") ->  | M11: =IF(Q11>0,L11-L$8,"") ->  | N11: =IF(Q11>0,S11,"") ->  | O11: =IF(Q11>0,2-(L11/((L$8+L$9+L$10)/3)),"") ->  | P11: =B11 -> 0 | S11: 40
A12: 5 | P12: 0 | S12: 37
A13: 6 | P13: 0 | S13: 34
A14: 7 | P14: 0 | S14: 32
A15: 8 | P15: 0 | S15: 30
A16: 9 | P16: 0 | S16: 28
A17: 10 | P17: 0 | S17: 26
A18: 11 | P18: 0 | S18: 24
A19: 12 | P19: 0 | S19: 22
A20: 13 | P20: 0 | S20: 20
S21: 18
S22: 16
S23: 15
S24: 14
S25: 13
S26: 12
S27: 11
S28: 10
S29: 9
S30: 8
S31: 7
S32: 6
S33: 5
S34: 4
S35: 3
S36: 2
S37: 1

Sheet Women Master
A1: =COVER!A1 -> U.S. IBU Cup Trials & MN Cup #3
A2: =COVER!A2 -> 2012-12-16
A3: MASTER WOMEN'S 10 km PURSUIT COMPETITION
A4: =COVER!A4 -> FINAL RESULTS
A5: =COVER!A5 -> Coleraine, MN | O5: =COVER!N5 -> Mt. Itasca Nordic Ski Association
C6: 30-39 Years Old
A7: Pos. | B7: StNr | C7: Name | D7: Club/Team/Hometown, State | E7: Start | F7: Ski Time | G7: P | H7: P | I7: S | J7: S | K7: T | L7: Final | M7: Behind | N7: NA-Pts | O7: % | P7: StNr | Q7: FINISH | S7: Points
A8: 1 | K8: =IF(ISBLANK(G8),"",G8+H8+I8+J8) ->  | L8: =IF(Q8>0,Q8-E8,"") ->  | M8: =IF(Q8>0,L8-L$8,"") ->  | N8: =IF(Q8>0,S8,"") ->  | P8: =B8 -> 0 | S8: 50
A9: 2 | K9: =IF(ISBLANK(G9),"",G9+H9+I9+J9) ->  | L9: =IF(Q9>0,Q9-E9,"") ->  | M9: =IF(Q9>0,L9-L$8,"") ->  | N9: =IF(Q9>0,S9,"") ->  | P9: =B9 -> 0 | S9: 46
L10: =IF(Q10>0,Q10-E10,"") ->  | M10: =IF(Q10>0,L10-L$8,"") ->  | N10: =IF(Q10>0,S10,"") ->  | O10: =IF(Q10>0,2-(L10/((L$8+L$9+L$10)/3)),"") ->  | S10: 43
S11: 40
S12: 37
S13: 34
S14: 32
S15: 30
S16: 28
S17: 26
S18: 24
S19: 22
S20: 20
S21: 18
S22: 16
S23: 15
S24: 14
S25: 13
S26: 12
S27: 11
S28: 10
S29: 9
S30: 8
S31: 7
S32: 6
S33: 5
S34: 4
S35: 3
S36: 2
S37: 1

Sheet Women Veteran
A1: =COVER!A1 -> U.S. IBU Cup Trials & MN Cup #3
A2: =COVER!A2 -> 2012-12-16
A3: VETERAN WOMEN'S 10 km PURSUIT COMPETITION
A4: =COVER!A4 -> FINAL RESULTS
A5: =COVER!A5 -> Coleraine, MN | O5: =COVER!N5 -> Mt. Itasca Nordic Ski Association
C6: 50+ Years Old
A7: Pos. | B7: StNr | C7: Name | D7: Club/Team/Hometown, State | E7: Start | F7: Ski Time | G7: P | H7: P | I7: S | J7: S | K7: T | L7: Final | M7: Behind | N7: NA-Pts | O7: % | P7: StNr | Q7: FINISH | S7: Points
A8: 1 | K8: =IF(ISBLANK(G8),"",G8+H8+I8+J8) ->  | L8: =IF(Q8>0,Q8-E8,"") ->  | M8: =IF(Q8>0,L8-L$8,"") ->  | N8: =IF(Q8>0,S8,"") ->  | P8: =B8 -> 0 | S8: 50
O9: =IF(Q9>0,2-(L9/((L$8+L$9+L$10)/3)),"") ->  | S9: 46
S10: 43
S11: 40
S12: 37
S13: 34
S14: 32
S15: 30
S16: 28
S17: 26
S18: 24
S19: 22
S20: 20
S21: 18
S22: 16
S23: 15
S24: 14
S25: 13
S26: 12
S27: 11
S28: 10
S29: 9
S30: 8
S31: 7
S32: 6
S33: 5
S34: 4
S35: 3
S36: 2
S37: 1

Sheet Women Sr
A1: =COVER!A1 -> U.S. IBU Cup Trials & MN Cup #3
A2: =COVER!A2 -> 2012-12-16
A3: SR MASTER WOMEN'S 10 km PURSUIT COMPETITION
A4: =COVER!A4 -> FINAL RESULTS
A5: =COVER!A5 -> Coleraine, MN | O5: =COVER!N5 -> Mt. Itasca Nordic Ski Association
C6: 40-49 Years Old
A7: Pos. | B7: StNr | C7: Name | D7: Club/Team/Hometown, State | E7: Start | F7: Ski Time | G7: P | H7: P | I7: S | J7: S | K7: T | L7: Final | M7: Behind | N7: NA-Pts | O7: % | P7: StNr | Q7: FINISH | S7: Points
A8: 1 | K8: =IF(ISBLANK(G8),"",G8+H8+I8+J8) ->  | L8: =IF(Q8>0,Q8-E8,"") ->  | M8: =IF(Q8>0,L8-L$8,"") ->  | N8: =IF(Q8>0,S8,"") ->  | P8: =B8 -> 0 | S8: 50
O9: =IF(Q9>0,2-(L9/((L$8+L$9+L$10)/3)),"") ->  | S9: 46
S10: 43
S11: 40
S12: 37
S13: 34
S14: 32
S15: 30
S16: 28
S17: 26
S18: 24
S19: 22
S20: 20
S21: 18
S22: 16
S23: 15
S24: 14
S25: 13
S26: 12
S27: 11
S28: 10
S29: 9
S30: 8
S31: 7
S32: 6
S33: 5
S34: 4
S35: 3
S36: 2
S37: 1

Sheet Men Sr
A1: =COVER!A1 -> U.S. IBU Cup Trials & MN Cup #3
A2: =COVER!A2 -> 2012-12-16
A3: SR MASTER MEN'S 12.5 km PURSUIT COMPETITION
A4: =COVER!A4 -> FINAL RESULTS
A5: =COVER!A5 -> Coleraine, MN | O5: =COVER!N5 -> Mt. Itasca Nordic Ski Association
C6: 40-49 Years Old
A7: Pos. | B7: StNr | C7: Name | D7: Club/Team/Hometown, State | E7: Start | F7: Ski Time | G7: P | H7: P | I7: S | J7: S | K7: T | L7: Final | M7: Behind | N7: NA-Pts | O7: % | P7: StNr | Q7: FINISH | S7: Points
A8: 1 | K8: =IF(ISBLANK(G8),"",G8+H8+I8+J8) ->  | L8: =IF(Q8>0,Q8-E8,"") ->  | M8: =IF(Q8>0,L8-L$8,"") ->  | N8: =IF(Q8>0,S8,"") ->  | O8: =IF(Q8>0,2-(L8/((L$8+L$9+L$10)/3)),"") ->  | P8: =B8 -> 0 | S8: 50
A9: 2 | P9: 0 | S9: 46
A10: 3 | P10: 0 | S10: 43
A11: 4 | P11: 0 | S11: 40
A12: 5 | P12: 0 | S12: 37
A13: 6 | P13: 0 | S13: 34
L14: =IF(Q14>0,Q14-E14,"") ->  | M14: =IF(Q14>0,L14-L$8,"") ->  | N14: =IF(Q14>0,S14,"") ->  | O14: =IF(Q14>0,2-(L14/((L$8+L$9+L$10)/3)),"") ->  | S14: 32
S15: 30
S16: 28
S17: 26
S18: 24
S19: 22
S20: 20
S21: 18
S22: 16
S23: 15
S24: 14
S25: 13
S26: 12
S27: 11
S28: 10 | V28: `
S29: 9
S30: 8
S31: 7
S32: 6
S33: 5
S34: 4
S35: 3
S36: 2
S37: 1

Sheet Men Veteran
A1: =COVER!A1 -> U.S. IBU Cup Trials & MN Cup #3
A2: =COVER!A2 -> 2012-12-16
A3: VETERAN MEN'S 12.5 km PURSUIT COMPETITION
A4: =COVER!A4 -> FINAL RESULTS
A5: =COVER!A5 -> Coleraine, MN | O5: =COVER!N5 -> Mt. Itasca Nordic Ski Association
C6: 50+ Years Old
A7: Pos. | B7: StNr | C7: Name | D7: Club/Team/Hometown, State | E7: Start | F7: Ski Time | G7: P | H7: P | I7: S | J7: S | K7: T | L7: Final | M7: Behind | N7: NA-Pts | O7: % | P7: StNr | Q7: FINISH | S7: Points
A8: 1 | K8: =IF(ISBLANK(G8),"",G8+H8+I8+J8) ->  | L8: =IF(Q8>0,Q8-E8,"") ->  | M8: =IF(Q8>0,L8-L$8,"") ->  | N8: =IF(Q8>0,S8,"") ->  | O8: =IF(Q8>0,2-(L8/((L$8+L$9+L$10)/3)),"") ->  | P8: =B8 -> 0 | S8: 50
A9: 2 | P9: 0 | S9: 46
A10: 3 | P10: 0 | S10: 43
A11: 4 | P11: 0 | S11: 40
A12: 5 | P12: 0 | S12: 37
A13: 6 | P13: 0 | S13: 34
S14: 32
L15: =IF(Q15>0,Q15-E15,"") ->  | M15: =IF(Q15>0,L15-L$8,"") ->  | N15: =IF(Q15>0,S15,"") ->  | O15: =IF(Q15>0,2-(L15/((L$8+L$9+L$10)/3)),"") ->  | S15: 30
S16: 28
S17: 26
S18: 24
S19: 22
S20: 20
S21: 18
S22: 16
S23: 15
S24: 14
S25: 13
S26: 12
S27: 11
S28: 10 | V28: `
S29: 9
S30: 8
S31: 7
S32: 6
S33: 5
S34: 4
S35: 3
S36: 2
S37: 1

Sheet Point Summary
B1: Junior/Youth World Biathlon Trials
B2: % Summary
B3: Through Day 2
A6: Class | B6: Name | C6: Club/Team/Hometown, State | D6: Sprint | E6: Pursuit | F6: 2-Day Total | G6: Relay | H6: Total Best 2 of 3 Days
F7: =SUM(D7:E7) -> 0.00%
F8: 0.00%
F9: 0.00%
F10: 0.00%
F11: 0.00%
F12: 0.00%
F13: 0.00%
F14: 0.00%
F15: =SUM(D15:E15) -> 0.00%
F16: 0.00%
F17: 0.00%
F18: 0.00%
F19: 0.00%
F20: 0.00%
F21: 0.00%
F22: 0.00%
F23: 0.00%
F24: 0.00%
F25: 0.00%
F26: 0.00%
F27: 0.00%
F28: 0.00%
F29: 0.00%
F30: 0.00%
F31: 0.00%
F32: 0.00%
F33: 0.00%
F34: 0.00%
F35: 0.00%
F36: 0.00%
F37: 0.00%
F38: 0.00%
F39: 0.00%
F40: 0.00%
F41: 0.00%
F42: =SUM(D42:E42) -> 0.00%
F43: 0.00%
F44: 0.00%
F45: 0.00%
F46: 0.00%
F47: 0.00%
F48: 0.00%
F49: =SUM(D49:E49) -> 0.00%
F50: 0.00%
F51: 0.00%
F52: 0.00%
F53: 0.00%
F54: 0.00%
F55: 0.00%
F56: 0.00%
F57: 0.00%
